Cogmind - Beta 10.2 @@@ ROGUE MODE // 2022.01.16 @ 20:31:58 Player: lumberblack Result: Destroyed by P-60 Hacker with Shock Rifle Performance ------------- Evolutions (1) 500 Regions Visited (5) 1000 Robots Destroyed (111) 555 Value Destroyed (3055) 3055 Prototype IDs (33) 660 Alien Tech Used (0) 0 Bonus (-111) -111 TOTAL SCORE: 5659 Bonus ------- High Alert Combat Kills 152 Follower Combat Kills 99 Aligned with FarCom 300 Friendly Fire -662 Cogmind --------- Core Integrity 0/400 Matter 31/300 Energy 81/100 System Corruption 10% Temperature Cool (6) Movement Core (400) Ox7 Location -9/Exiles Parts ------- > --- POWER (1) -------- (None) > --- PROPULSION (2) --- (None) > --- UTILITY (4) ------ Large Storage Unit Core Shielding > --- WEAPON (2) ------- High-powered Shotgun High-powered Shotgun > --- INVENTORY (10) --- Cold Fusion Reactor Missile Launcher Peak State ------------ > --- POWER ------------ Heavy Ion Engine > --- PROPULSION ------- Potential Leg Potential Leg > --- UTILITY ---------- Large Storage Unit Hardened Light Armor Plating 8R-AWN's Armor/EX > --- WEAPON ----------- AWS/Gauss > --- INVENTORY -------- High-powered Shotgun High-powered Shotgun Missile Launcher Missile Launcher [Rating: 63] Favorites ----------- Power Heavy Ion Engine Engine Heavy Ion Engine Power Core Light Nuclear Core Reactor Cold Fusion Reactor Propulsion Light Treads Treads Light Treads Leg Potential Leg Wheel Armored Wheel Utility Hardened Light Armor Plating Device Improved Terrain Scanner Storage Large Storage Unit Processor Improved Targeting Computer Protection Hardened Light Armor Plating Weapon High-powered Shotgun Energy Gun Medium Laser Energy Cannon Particle Cannon Ballistic Gun High-powered Shotgun Ballistic Cannon Battle Cannon Launcher Missile Launcher Special Weapon Plasma Cutter Build | -11 -10 -10 -9 -9 -9 ------- Run | Scr Mat Min Mat Min Exi Slots Evolved 2 | . . . 2 . . Power . | . . . . . . Propulsion . | . . . . . . Utility 2 | . . . 2 . . Weapon . | . . . . . . Parts Attached 100 | 4 22 8 37 2 27 Power 9 | . 3 1 2 . 3 Engine 7 | . 3 . 2 . 2 Core 1 | . . 1 . . . Reactor 1 | . . . . . 1 Propulsion 26 | 2 9 2 9 2 2 Treads 18 | 1 6 1 8 2 . Leg 2 | . . . . . 2 Wheel 6 | 1 3 1 1 . . Hover . | . . . . . . Flight . | . . . . . . Utility 18 | 1 . 1 11 . 5 Device 2 | 1 . . 1 . . Storage 6 | . . 1 3 . 2 Processor 1 | . . . 1 . . Hackware . | . . . . . . Protection 9 | . . . 6 . 3 Artifact . | . . . . . . Weapon 47 | 1 10 4 15 . 17 Energy Gun . | . . . . . . Energy Cannon 5 | . . . 5 . . Ballistic Gun 24 | 1 6 . 6 . 11 Ballistic Cannon 4 | . . 2 2 . . Launcher 8 | . . 2 2 . 4 Special Weapon 6 | . 4 . . . 2 Impact Weapon . | . . . . . . Slashing Weapon . | . . . . . . Piercing Weapon . | . . . . . . Special Melee Weapon . | . . . . . . Unidentified Prototypes 4 | . . . 1 . 3 Parts Lost 13 | . 1 . . . 12 Power 3 | . 1 . . . 2 Propulsion 2 | . . . . . 2 Utility 4 | . . . . . 4 Weapon 4 | . . . . . 4 Highest Loss Streak 6 | . 1 . . . 6 Average Slot Usage (%) 97 | . 99 100 99 100 79 Engine 11 | . 14 5 9 11 9 Treads 19 | . 27 15 21 11 1 Leg 1 | . . . . . 17 Wheel 2 | . . 12 . 11 1 Device 6 | . 14 5 4 . . Storage 15 | . 14 22 15 22 13 Protection 12 | . . . 23 22 16 Energy Cannon 1 | . . . 5 . . Ballistic Gun 20 | . 27 15 16 22 15 Naked Turns . | . . . . . . Heaviest Build 63 | 12 14 18 56 56 63 Greatest Support 60 | 20 40 40 40 12 60 Greatest Overweight (x) 4 | 1 1 1 4 4 4 Average Overweight (x) 1 | . . . . 4 1 Largest Inventory Capacity 16 | 6 6 6 16 16 16 Average Capacity 9 | 6 6 6 10 16 11 Most Carried 16 | 6 6 6 16 16 16 Average Carried 8 | 5 4 5 9 15 7 Final Capacity 16 | 6 6 6 16 16 10 Final Carried 16 | 4 6 6 16 16 2 Class Distribution -------------------- 93% | Mutant 6% | Scavenger-Mutant Dominant Class ---------------- Mutant | -10/Materials Mutant | -10/Mines Mutant | -9/Materials Mutant | -9/Mines Mutant | -9/Exiles Resources | -11 -10 -10 -9 -9 -9 ----------- Run | Scr Mat Min Mat Min Exi Matter Collected 2760 | 282 759 150 998 60 511 Remotely . | . . . . . . Salvage Created 3687 | 114 454 123 1308 27 1661 Parts 258 | 9 36 4 84 4 121 Haulers Intercepted 7 | . 2 . 5 . . Recyclers Shooed 3 | . . . 3 . . Parts Field Recycled . | . . . . . . Retrieved Matter . | . . . . . . Parts Self-Destructed . | . . . . . . Prevented . | . . . . . . Kills | -11 -10 -10 -9 -9 -9 ------- Run | Scr Mat Min Mat Min Exi Combat Hostiles Destroyed 90 | . 10 4 27 2 47 Guns 51 | . 10 . 10 2 29 Cannons 10 | . . 1 9 . . AOE 29 | . . 3 8 . 18 Classes Destroyed 15 | 2 6 . 2 . 5 Worker 3 | . . . 3 . . Builder 2 | . 1 . 1 . . Tunneler 3 | 2 . . 1 . . Hauler 7 | . 2 . 5 . . Recycler 4 | 1 . 1 2 . . Operator 2 | . 1 . 1 . . Watcher 6 | . 3 . 3 . . Swarmer 18 | . 6 3 7 2 . Grunt 37 | . 4 1 12 . 20 Brawler 5 | . . . . . 5 Duelist 1 | . . . . . 1 Sentry 8 | . . . 8 . . Hunter 8 | . . . . . 8 Programmer 5 | . . . . . 5 Assembled 7 | . . . . . 7 Best Kill Streak 14 | 3 3 3 10 2 14 Combat Bots Only 14 | . 3 3 7 2 14 Max Kills in Single Turn 4 | 1 2 1 4 1 4 Gunslinging 1 | . . . 1 . . Exploded 4 | . . 1 3 . 4 Melee . | . . . . . . Uniques/NPCs Destroyed 2 | . . . . . 2 EX-BIN (-9/Exiles) 8R-AWN (-9/Exiles) Combat | -11 -10 -10 -9 -9 -9 -------- Run | Scr Mat Min Mat Min Exi Damage Taken 4336 | . 503 147 766 44 2876 Core 546 | . 74 64 59 . 349 Absorbed by Shields . | . . . . . . Core Remaining (%) 72 | 100 . 44 . . . Volleys Fired 223 | 13 59 16 73 4 58 Largest 2 | 2 2 2 2 2 2 Hottest 136 | 70 100 59 136 50 58 Shots Fired 501 | 26 112 26 139 8 190 Gun 386 | 26 106 10 66 8 170 Cannon 78 | . . 11 67 . . Launcher 27 | . . 5 6 . 16 Special 10 | . 6 . . . 4 Kinetic 388 | 14 106 21 69 8 170 Thermal 86 | 12 6 . 64 . 4 Explosive 27 | . . 5 6 . 16 Electromagnetic . | . . . . . . Robot Hit Streak 27 | 9 17 8 14 1 27 Robot Miss Streak 8 | 1 5 1 8 3 6 Penetration Max 1 | . . . . . 1 Secondary Targets 2 | . . . 2 . . Max Gunslinging Chain 1 | . . . 1 . . Autonomous 96 | . . . . . 96 Shots Hit Robots 325 | 15 68 14 91 4 133 Core Hits 181 | 4 23 7 61 3 83 Critical Hits 5 | . . 1 . . 4 Critical Kills 1 | . . 1 . . . Critical Parts Destroyed 3 | . . . . . 3 Melee Attacks . | . . . . . . Impact . | . . . . . . Slashing . | . . . . . . Piercing . | . . . . . . Sneak Attacks . | . . . . . . Combat Hostiles . | . . . . . . Follow-up Attacks . | . . . . . . Damage Inflicted 9386 | 201 857 340 2967 81 4940 Guns 5566 | 201 846 98 952 81 3388 Cannons 1132 | . . 129 1003 . . Explosions 2463 | . . 110 804 . 1549 Melee . | . . . . . . Ramming 222 | . 11 3 208 . . Kinetic 5616 | 103 846 227 971 81 3388 Thermal 1136 | 98 . 51 984 . 3 Explosive 2412 | . . 59 804 . 1549 Electromagnetic . | . . . . . . Impact . | . . . . . . Slashing . | . . . . . . Piercing . | . . . . . . Highest Corruption 10 | . . . 2 2 10 Average Corruption 2 | . . . 2 2 2 Corruption Purged . | . . . . . . Effects 35 | . . . 16 9 10 Message Errors 12 | . . . 4 6 2 Matter Fused 1 | . . . . . 1 Heat Flow Errors 4 | . . . 4 . . Energy Discharges 7 | . . . 3 2 2 Data Loss (minor) 6 | . . . 4 1 1 Alerts 1 | . . . . . 1 Targeting Errors 3 | . . . 1 . 2 Weapon Failures 1 | . . . . . 1 Overload Shots . | . . . . . . Overflow Damage 97 | . . 11 77 . 9 Projectiles 27 | . . . 27 . . Explosions 62 | . . 11 42 . 9 Melee 8 | . . . 8 . . Knockbacks 3 | . . 1 2 . . Impact 2 | . . . 2 . . Kinetic 1 | . . 1 . . . Secondary . | . . . . . . Self-Inflicted Damage 20 | . . . . . 20 Shots 1 | . . . . . 1 Rammed 37 | . 7 1 29 . . Targets Rammed 40 | . 8 1 31 . . Kicked . | . . . . . . Crushed 3 | . 1 . 2 . . Highest Temperature 300 | 45 40 32 300 24 44 Average Temperature 53 | 21 16 11 73 11 14 Received Heat Transfer 588 | . 120 51 291 . 126 Siege Activations . | . . . . . . Robots Corrupted . | . . . . . . Combat Hostiles . | . . . . . . Parts Fried . | . . . . . . Impact Corruptions 1 | . . . 1 . . Robots Melted . | . . . . . . Combat Hostiles . | . . . . . . Parts Melted 3 | . . . 3 . . Heat Transferred 2162 | 296 . 100 1739 . 27 Parts Sabotaged . | . . . . . . Parts Stolen . | . . . . . . Parts Stripped . | . . . . . . Power Chain Reactions . | . . . . . . Missiles Intercepted . | . . . . . . Alert | -11 -10 -10 -9 -9 -9 ------- Run | Scr Mat Min Mat Min Exi Peak Influence 354 | 15 219 209 354 229 . Initial 129 | . 9 29 14 129 . Average 127 | 5 66 76 206 116 . Maximum Alert Level 1 | . 1 1 1 1 . Low Security (%) 70 | 100 94 99 40 62 . Level 1 29 | . 5 . 59 37 . Level 2 . | . . . . . . Level 3 . | . . . . . . Level 4 . | . . . . . . Level 5 . | . . . . . . High Security . | . . . . . . Max Security . | . . . . . . Squads Dispatched 9 | . 3 . 6 . . Investigation 7 | . 2 . 5 . . Extermination . | . . . . . . Reinforcement 2 | . 1 . 1 . . Assault . | . . . . . . Garrison . | . . . . . . Intercept . | . . . . . . Construction Impeded 1 | . . . 1 . . Haulers Reinforced . | . . . . . . Stealth | -11 -10 -10 -9 -9 -9 --------- Run | Scr Mat Min Mat Min Exi Distress Signals 10 | . 3 . 7 . . Communications Jammed . | . . . . . . Distress Signals . | . . . . . . Times Spotted 137 | . 30 6 52 7 42 Peak Tracking Total 11 | . 4 2 7 4 11 Tactical Retreats 17 | . 3 3 8 . 3 Traps | -11 -10 -10 -9 -9 -9 ------- Run | Scr Mat Min Mat Min Exi Traps Triggered 2 | . . . 1 1 . Indirectly . | . . . . . . Trap Hack Attempts . | . . . . . . Triggered . | . . . . . . Disarmed . | . . . . . . Reprogrammed . | . . . . . . Reused . | . . . . . . Traps Extracted . | . . . . . . Installed . | . . . . . . Triggered . | . . . . . . Machines | -11 -10 -10 -9 -9 -9 ---------- Run | Scr Mat Min Mat Min Exi Machines Disabled 16 | . . 3 2 . 11 Max in Single Turn 3 | . . 2 1 . 3 Machines Sabotaged . | . . . . . . Garrisons Compromised . | . . . . . . Overloaded Fab Kills . | . . . . . . Fab Network Shutdowns . | . . . . . . Hacking | -11 -10 -10 -9 -9 -9 --------- Run | Scr Mat Min Mat Min Exi Machines Accessed 25 | . 9 . 14 1 1 Terminals 15 | . 6 . 9 . . Fabricators . | . . . . . . Repair Stations 3 | . 1 . 2 . . Recycling Units 4 | . 2 . 2 . . Scanalyzers 1 | . . . 1 . . Garrison Access . | . . . . . . Total Hacks 73 | . 35 . 36 1 1 Successful 42 | . 23 . 17 1 1 Failed 30 | . 11 . 19 . . Catastrophic 5 | . 2 . 3 . . Database Lockouts 1 | . 1 . . . . Manual 33 | . 21 . 11 . 1 Terminals 53 | . 26 . 27 . . Fabricators . | . . . . . . Repair Stations 11 | . 6 . 5 . . Recycling Units 5 | . 3 . 2 . . Scanalyzers 2 | . . . 2 . . Garrison Access . | . . . . . . Terminal Hacks 19 | . 9 . 8 1 1 Part Schematic 1 | . 1 . . . . Robot Analysis 2 | . 2 . . . . Prototype ID Bank 4 | . 1 . 3 . . Open Door 1 | . . . . 1 . Branch Access Points 1 | . . . 1 . . Alert Level 1 | . . . 1 . . Unreport Threat 3 | . 1 . 2 . . Locate Traps 3 | . 3 . . . . Hauler Manifests 1 | . . . 1 . . Zone Layout 1 | . 1 . . . . EX-Prototype ID Bank 1 | . . . . . 1 Fabricator Hacks . | . . . . . . Repair Station Hacks 10 | . 6 . 4 . . Scan Component 5 | . 3 . 2 . . Repair 5 | . 3 . 2 . . Recycling Unit Hacks . | . . . . . . Scanalyzer 2 | . . . 2 . . Insert Component 1 | . . . 1 . . Analyze 1 | . . . 1 . . Garrison Access Hacks . | . . . . . . Unauthorized Hacks 11 | . 8 . 3 . . Terminals 6 | . 5 . 1 . . Track 5 | . 4 . 1 . . Botnet 1 | . 1 . . . . Fabricators . | . . . . . . Repair Stations . | . . . . . . Recycling Units 5 | . 3 . 2 . . Recyclers 1 | . 1 . . . . Tunnel 4 | . 2 . 2 . . Scanalyzers . | . . . . . . Garrison Access . | . . . . . . Data Cores Recovered . | . . . . . . Used . | . . . . . . Hacking Detections 19 | . 7 . 12 . . Full Trace Events 3 | . 1 . 2 . . Feedback Events . | . . . . . . Feedback Blocked . | . . . . . . Robot Schematics Acquired . | . . . . . . Robots Built . | . . . . . . Matter . | . . . . . . Time . | . . . . . . Total Robot Build Rating . | . . . . . . Part Schematics Acquired 2 | . 1 . 1 . . Parts Built . | . . . . . . Matter . | . . . . . . Time . | . . . . . . Total Part Build Rating . | . . . . . . Parts Repaired 5 | . 3 . 2 . . Time 132 | . 78 . 54 . . Parts Recycled . | . . . . . . Recycled Matter . | . . . . . . Retrieved Matter . | . . . . . . Retrieved Components . | . . . . . . Parts Scanalyzed 1 | . . . 1 . . Part Schematics Acquired 1 | . . . 1 . . Parts Damaged . | . . . . . . Bothacking | -11 -10 -10 -9 -9 -9 ------------ Run | Scr Mat Min Mat Min Exi Used RIF Installer . | . . . . . . Robots Hacked . | . . . . . . Non-combat . | . . . . . . Combat . | . . . . . . Robot Hacks Applied . | . . . . . . Relay Couplers Released . | . . . . . . Robots Rewired . | . . . . . . Allies Hacked . | . . . . . . Hacks Repelled . | . . . . . . Allies | -11 -10 -10 -9 -9 -9 -------- Run | Scr Mat Min Mat Min Exi Total Allies 5 | . . . . 5 . Largest Group 4 | . . . . 4 2 Highest-Rated Group 55 | . . . . 55 32 Highest-Rated Ally 31 | . . . . 31 16 Total Orders . | . . . . . . Ally Attacks 28 | . . . . 19 9 Total Damage 279 | . . . . 205 74 Kills 5 | . . . . 5 . Allies Corrupted . | . . . . . . Allies Melted . | . . . . . . Intel | -11 -10 -10 -9 -9 -9 ------- Run | Scr Mat Min Mat Min Exi Robot Analysis Total 2 | . 2 . . . . Derelict Logs Recovered 5 | . . 3 . 2 . Drone Launches . | . . . . . . Drone Recoveries . | . . . . . . Exploration | -11 -10 -10 -9 -9 -9 ------------- Run | Scr Mat Min Mat Min Exi Turns Passed 8129 | 86 2925 507 2857 881 873 Spaces Moved 3871 | 38 901 476 1404 583 469 Core . | . . . . . . Treads 2073 | . 770 21 1282 . . Legs 372 | 18 . . . . 354 Wheels 1426 | 20 131 455 122 583 115 Hover . | . . . . . . Flight . | . . . . . . Fastest Speed 90 | 90 90 90 90 130 90 Average Speed 139 | 104 149 93 163 130 106 Slowest Speed 200 | 120 160 160 200 130 130 Overloaded Moves . | . . . . . . Propulsion Burnouts . | . . . . . . Robots Hopped . | . . . . . . Cave-ins Triggered . | . . . . . . Exploration Rate (%) 62 | 4 94 67 76 94 41 Regions Visited 5 Branch Regions 3 Pre-discovered Areas 5 | . 2 . 2 1 . Known Exits Taken 1 | . . . 1 . . Unknown Exits Taken 4 | 1 1 1 . 1 . Scrap Searched 2 | . . 1 . 1 . Spaces Dug 29 | . 6 7 11 . 5 Terrain Destroyed 144 | . 6 54 39 . 45 Melee . | . . . . . . Projectile 22 | . 6 1 . . 15 AOE 122 | . . 53 39 . 30 Terrain Rammed . | . . . . . . Walls Destroyed . | . . . . . . Machines Disabled . | . . . . . . Actions | -11 -10 -10 -9 -9 -9 --------- Run | Scr Mat Min Mat Min Exi Total 6167 | 58 2346 511 1810 700 742 Wait 1828 | . 1344 5 211 101 167 Move 3866 | 37 900 475 1403 582 469 Hop . | . . . . . . Pick Up 42 | 1 6 2 21 5 7 Fast Attach 34 | 1 4 2 17 1 9 Attach 24 | 2 2 1 7 1 11 Detach 7 | . . . 4 . 3 Swap 42 | 1 16 5 13 . 7 Drop 61 | 3 7 4 30 6 11 Fire 223 | 13 59 16 73 4 58 Melee . | . . . . . . Ram . | . . . . . . Kick . | . . . . . . Crush 40 | . 8 1 31 . . Escape Stasis . | . . . . . . Rewire . | . . . . . . Trap . | . . . . . . Miscellaneous . | . . . . . . Route ------- -11/Scrapyard -10/Materials (discovered 5 exits: *Mat x3 / [*Min x2]) -10/Mines (discovered 2 exits: *Mat x2) -9/Materials (discovered 3 exits: *Mat x2 / *Min) -9/Mines (discovered 3 exits: *Mat x2 / *Exi) -9/Exiles History --------- Turn | Location | Event 1 | -11/Scrapyard | Discovered new exit (range 3) 87 | -11/Scrapyard | Entered Materials 321 | -10/Materials | Build established: Mutant 1463 | -10/Materials | Discovered new exit (range 6) 1484 | -10/Materials | Central database locked down 1640 | -10/Materials | Discovered new exit (range 16) 1640 | -10/Materials | Discovered new exit (range 17) 1817 | -10/Materials | Repaired Lgt. Treads 1963 | -10/Materials | Discovered new exit (range 16) 2517 | -10/Materials | Discovered new exit (range 15) 2704 | -10/Materials | Repaired Assault Rifle 2732 | -10/Materials | Repaired Assault Rifle 3012 | -10/Materials | Entered Mines 3034 | -10/Mines | Discovered new exit (range 6) 3052 | -10/Mines | Met a Derelict bent on vengeance 3065 | -10/Mines | A weapon hastily lodged in a ceiling crevice suddenly fell to the ground 3109 | -10/Mines | Learned Materials terminal intel 3142 | -10/Mines | Learned 2 Materials zone layouts 3180 | -10/Mines | Discovered new exit (range 11) 3284 | -10/Mines | Core integrity fell below 50% 3408 | -10/Mines | Learned 4 Materials zone layouts 3437 | -10/Mines | Assembled infested the area 3519 | -10/Mines | Entered Materials 3519 | -9/Materials | Evolved 2 slots: Utility x2 3520 | -9/Materials | Identified exit to Materials 3521 | -9/Materials | Loaded intel: 12 terminal locations 3967 | -9/Materials | Discovered new exit (range 14) 4131 | -9/Materials | Identified exit to Mines 4762 | -9/Materials | Destroyed 7 combat bots 4810 | -9/Materials | Repaired Hrd. Light Armor Plating 4935 | -9/Materials | Discovered exit to Materials (range 16) 5021 | -9/Materials | Build established: Scavenger-Mutant 5553 | -9/Materials | Repaired Hpw. Shotgun 5555 | -9/Materials | Build established: Mutant 6376 | -9/Materials | Entered Mines 6486 | -9/Mines | Discovered exit to Materials (range 9) 6520 | -9/Mines | Learned location of Zion (-7) 6540 | -9/Mines | Met a Derelict who couldn't figure out how to use a Trap Extractor 6726 | -9/Mines | Learned 4 Materials zone layouts 6824 | -9/Mines | Deemed a non-threat by the Exiles lab entrance 6862 | -9/Mines | Assisted by bots powering up and referring to "LRC-V3" 7084 | -9/Mines | Discovered exit to Materials (range 10) 7251 | -9/Mines | Discovered new exit (range 5) 7257 | -9/Mines | Entered Exiles 7257 | -9/Exiles | Accompanied by 2 allies 7290 | -9/Exiles | Met 8R-AWN 7312 | -9/Exiles | Met EX-HEX 7348 | -9/Exiles | Met EX-BIN 7363 | -9/Exiles | Aligned with FarCom system 7364 | -9/Exiles | Given EX-Vault access code 7398 | -9/Exiles | Opened EX-Vault 7408 | -9/Exiles | Found Potential Leg 7411 | -9/Exiles | Found Potential Leg 7417 | -9/Exiles | Found AWS/Gauss 7450 | -9/Exiles | Exiles lab attacked by MAIN.C 7474 | -9/Exiles | Destroyed EX-BIN 7475 | -9/Exiles | Attacked by the Exiles 7514 | -9/Exiles | Destroyed 7 combat bots 7601 | -9/Exiles | Destroyed 8R-AWN 7610 | -9/Exiles | Found Prototype Protection 7610 | -9/Exiles | Identified 8R-AWN's Armor/EX 7630 | -9/Exiles | Lost 3 parts (1p2u) 7749 | -9/Exiles | Destroyed 9 combat bots 7969 | -9/Exiles | Found Prototype Ballistic Gun 7969 | -9/Exiles | Identified 8R-AWN's Boregun 8075 | -9/Exiles | Destroyed 14 combat bots 8085 | -9/Exiles | Core integrity fell below 50% 8121 | -9/Exiles | Core integrity fell below 20% 8128 | -9/Exiles | System corruption reached 10% 8130 | -9/Exiles | Destroyed by P-60 Hacker with Shock Rifle Last Messages --------------- 08105_ Chain reaction triggered in Imp. Ion Engine. 08105_ L-31 Rogue destroyed. 08106_ Slug penetrates Wall. 08106_ 8R-AWN's Boregun destroyed. 08109_ Slug penetrates Wall. 08112_ Penetrated by Slug. 08114_ Destroyed Sml. Laser. 08114_ G-34 Mercenary destroyed. 08115_ Penetrated by Slug. 08115_ Slug penetrates Wall. 08116_ System corrupted: Missile Launcher targeting data glitched. 08118_ Gauss Rifle destroyed. 08120_ G-34 Mercenary destroyed. 08124_ Penetrated by Slug. 08124_ Missile Launcher destroyed. 08124_ Penetrated by Slug. 08124_ Potential Leg destroyed. 08127_ Penetrated by Slug. 08127_ Potential Leg destroyed. 08129_ System corrupted: IFF burst signal emitted. Map ----- +----------------------------------------------------+ | ??????????????????????## ![]"#??????????????????? | | ??????????????????????## ##??????????????????? | | ?????????????????????##" #########???????????? | | ?????????????????????# " ##" """"#???????????? | | ????????????????????# # *!##% ""#???????????? | | ???????????????????# # # ==[ %=/ X""#???????????? | | ???????????????????## ## %[!*##% """#???????????? | | ????????????????######?# %*%%" """""#???????????? | | ????????????????""""""?# * [#########???????????? | | ????????????????"""" ##=%[ #???????????????????? | | ???????????????#""X" [ #???????????????????? | | ???????????????#" [= #???????????????????? | | ???????????????#" ## % #???????????????????? | | ???????????????#"""" "## ###########?????????? | | ???????????????##"##### ;##"""""""#?????????? | | ???????????????? ????# [%###"""""""#?????????? | | ?????????????????????## =#?#"""""""#?????????? | | ?????????????????????## = ###"" """"#?????????? | | ?????????????????????# * " "#?????????? | | ?????????????????????## ! * #?????????? | | ??????????????????????# = %! "##????????? | | ?????????????????????## = % " #????????? | | ?????????????????????# % = "##????????? | | ?????????????????????# ! %!! = # "??????? | | ?????????????????????##* % ** " """ #???? | | ?????????????????????# !/@ = ""######????? | | ?????????????????????# %% = """ ???????? | | ????????????????????# * # "???????? | | ????????????????????# h= " "#?"???????? | | ???????????????????# * =*=| ### #####?????????? | | ???????????????????# ! [[# #?###?????????????? | | ???????????????????# ==%## #????????????????? | | ??????????????????? [%####????????????????? | | ??????????????????" % *= ##???###########???? | | ????????????????? ![[ #####"""""""""##??? | | ???????????????? * %| " """ """"##?? | | ?????????????? g === "" " #?? | | ?????????????? *! *%*%p " """#?? | | ??????????????? %= [ " "#?? | | ??????????????? ! " "##? | | ??????????????? = ""## | | ???????????????? """ """ | | ???????????????? ######""" " | | ?????????????????""#?????#####""" | | ?????????????????????????????##""" | | ??????????????????????????????#"""" | | ??????????????????????????????#"" | | ???????????????????????????????""" | | ?????????????????????????????? | | ????????????????????????????? | +----------------------------------------------------+ Best States ------------- Heat Dissipation 50 Energy Generation 14 Energy Capacity 280 Matter Stores 418 Matter Capacity 500 Sight Range 16 Terrain Scan Range 16 Terrain Scan Density 10 Armor Coverage 1150 Resistance: EX 90 Core Shielding 20 Evasion (%) 42 Targeting Accuracy 6 Recoil Reduction 2 Item Schematics ----------------- Med. Storage Unit | -10/Materials | Hacked Imp. Signal Interpreter | -9/Materials | Scanalyzed Robot Schematics ------------------ None Fabricated ------------ Nothing Alien Tech Used ----------------- None Achievements -------------- None Challenges ------------ None Game ------ Seed FireFusionTendrils Manual? 0 Play Time 00:51:28 Cumulative 326.1 hours Start 2022.01.16 @ 19:39:50 End 2022.01.16 @ 20:31:58 Sessions 1 Manual Loads 0 Difficulty Rogue Special Mode None Game No. 247 Rogue 247 Adventurer 0 Explorer 0 Win Type - Total 6 Types 5/0/1/0/0/0/0/0/0 Lore% 54 Gallery% 78 Achievement% 62 Wizard Run 0 Options --------- ASCII 0 Keyboard 0 Movement Numpad Keybinds 0 Fullscreen 2 Font 18/TerminusBold Map View 76x50 Tactical HUD 1 Map Filters NONE Filters NONE Steam 1 RUN: 0c9e86fb-237e-4b23-a738-dfa443f14660